bitfinex/quotes_ETHUSD_20250215
["timestamp","ask_amount","ask_price","bid_price","bid_amount"]
[1739611454629,3.95958,2705.2,2705.1,0.80969997]
[1739611454846,3.95942,2705.4,2705.1,0.80969997]
[1739611455457,3.69647,2705.3,2705.1,0.80969997]
[1739611458880,0.263,2705.4,2705.1,0.80969997]
[1739611459056,3.69592,2705.7,2705.1,0.80969997]
[1739611459257,3.69617,2705.5,2705.1,0.80969997]
[1739611459471,3.69617,2705.5,2705.1,1.61586715]
[1739611462086,3.69617,2705.5,2705.1,0.80969997]
[1739611462257,3.95879,2705.8,2705.3,4.28052803]
[1739611462766,3.95879,2705.8,2705.4,0.04710132]
[1739611462767,0.263,2705.8,2705.4,0.04710132]
[1739611462953,3.9588,2705.8,2705.4,0.04710132]
[1739611463155,3.69591,2705.7,2705.4,0.04710132]
[1739611464387,3.6957,2705.9,2705.4,0.04710132]
[1739611464774,3.69585,2705.8,2705.4,0.04710132]
[1739611465004,3.9585,2706.0,2705.5,0.76250465]
[1739611465505,3.69563,2705.9,2705.6,0.04683905]
[1739611468690,3.69579,2705.8,2705.6,0.04683905]
[1739611469338,3.69563,2705.9,2705.7,4.65e-06]
[1739611469542,3.69563,2705.9,2705.8,0.04682915]
[1739611469837,3.69576,2705.8,2705.7,4.65e-06]
[1739611472245,8.234899,2705.8,2705.7,4.65e-06]
[1739611472458,10.453899,2705.8,2705.7,4.65e-06]
[1739611475038,8.234899,2705.8,2705.7,4.65e-06]
[1739611475340,3.69603,2705.6,2705.5,4.65e-06]
[1739611475497,3.69603,2705.6,2705.5,0.04528999]
[1739611476035,4.14514936,2705.6,2705.5,0.04528999]
[1739611478243,4.14514936,2705.6,2705.5,4.65e-06]
[1739611479514,4.40914936,2705.6,2705.5,4.65e-06]
[1739611480737,5.15774601,2705.6,2705.5,4.65e-06]
[1739611483054,4.44462665,2705.6,2705.5,4.65e-06]
[1739611483240,3.96003,2705.6,2705.5,4.65e-06]
[1739611483564,3.69603,2705.6,2705.5,4.65e-06]
[1739611483772,3.96003,2705.6,2705.5,0.04528501]
[1739611483974,3.96003,2705.6,2705.5,4.65e-06]
[1739611486463,3.96003,2705.6,2705.5,0.04538893]
[1739611486642,3.96003,2705.6,2705.5,4.65e-06]
[1739611486842,3.96003,2705.6,2705.5,0.04538893]
[1739611487252,3.69576,2705.8,2705.5,0.87618893]
[1739611487494,3.69603,2705.6,2705.5,0.87618893]
[1739611488284,3.69603,2705.6,2705.5,0.04538893]
[1739611490978,0.264,2705.7,2705.5,0.04538893]
[1739611491138,0.264,2705.7,2705.6,0.8308]
[1739611491343,3.95976,2705.8,2705.6,0.8308]
[1739611491577,3.95976,2705.8,2705.7,0.04538428]
[1739611496754,3.95976,2705.8,2705.6,0.8308]
[1739611496948,3.6959,2705.7,2705.6,0.8308]
[1739611497888,3.69603,2705.6,2705.5,4.65e-06]
[1739611498389,3.69603,2705.6,2705.5,0.0453444]
[1739611498689,3.69603,2705.6,2705.5,4.65e-06]
[1739611498862,3.69603,2705.6,2705.5,0.0453444]
[1739611499049,3.69603,2705.6,2705.5,4.65e-06]
[1739611499250,3.69603,2705.6,2705.5,0.0453444]
[1739611499765,3.95988,2705.8,2705.5,0.0453444]
[1739611501692,2.219,2705.6,2705.5,0.0453444]
[1739611501876,3.6957,2705.9,2705.5,0.0453444]
[1739611502080,3.9597,2705.9,2705.5,0.41951984]
[1739611502266,3.9597,2705.9,2705.6,0.8157]
[1739611502783,3.9597,2705.9,2705.7,0.04533975]
[1739611503491,0.264,2705.9,2705.8,0.8157]
[1739611503694,3.95962,2705.9,2705.8,0.8157]
[1739611503989,0.264,2705.9,2705.8,0.8157]
[1739611504486,0.264,2705.9,2705.8,0.86103975]
[1739611504692,3.95962,2705.9,2705.8,0.86103975]
[1739611505065,3.95962,2705.9,2705.8,0.8610444]
[1739611505994,0.264,2705.9,2705.8,0.8610444]
[1739611506369,3.95962,2705.9,2705.8,0.8610444]
[1739611507598,3.95962,2705.9,2705.8,0.0453444]
[1739611512200,6.17862,2705.9,2705.8,0.0453444]
[1739611512360,3.95962,2705.9,2705.8,0.0453444]
[1739611513055,9.92912,2705.9,2705.8,0.04533975]
[1739611513256,3.69699,2704.9,2704.8,4.65e-06]
[1739611513459,3.69724,2704.8,2704.6,0.8168]
[1739611513672,3.69699,2704.9,2704.8,0.04040769]
[1739611513878,3.69713,2704.8,2704.6,0.8168]
[1739611514086,3.69699,2704.9,2704.6,0.8168]
[1739611514315,3.69699,2704.9,2704.7,0.04047689]
[1739611514612,3.69713,2704.8,2704.7,0.04047689]
[1739611518972,3.69754,2704.5,2704.4,0.8168]
[1739611519612,3.69754,2704.5,2704.4,9.56680465]
[1739611519776,3.69754,2704.5,2704.4,8.75000465]
[1739611520812,3.69754,2704.5,2704.4,8.79079795]
[1739611522930,3.69754,2704.5,2704.4,0.04079795]
[1739611524581,0.264,2704.7,2704.5,0.8168]
[1739611524925,0.264,2704.7,2704.6,0.04139653]
[1739611525286,3.96126,2704.7,2704.6,0.04139653]
[1739611528785,4.72766,2704.7,2704.6,0.04140118]
[1739611528987,5.493488,2704.7,2704.6,0.04140118]
[1739611539239,3.69808,2704.1,2704.0,0.8268]
[1739611539387,3.69849,2703.8,2703.4,0.8268]
[1739611539735,3.69876,2703.7,2703.4,10.53448]
[1739611540419,3.69849,2703.8,2703.4,10.53448]
[1739611540621,7.39711,2703.8,2703.4,10.53448]
[1739611540934,3.69866,2703.7,2703.4,10.53448]
[1739611541411,3.69849,2703.8,2703.4,10.53448]
[1739611543705,3.69849,2703.8,2703.5,8.75]
[1739611544317,3.69864,2703.7,2703.5,8.75]
[1739611544721,3.69849,2703.8,2703.5,8.75]
[1739611546103,7.39709,2703.8,2703.5,8.75]
[1739611547129,3.69849,2703.8,2703.5,8.75]
[1739611548029,3.69868,2703.7,2703.5,8.75]
[1739611548231,3.69849,2703.8,2703.5,8.75]
[1739611548444,7.39711,2703.8,2703.5,8.75]
[1739611548643,3.69877,2703.6,2703.5,8.75]
[1739611549623,3.69877,2703.6,2703.5,8.75000118]
[1739611549996,3.69877,2703.6,2703.5,1.18e-06]
[1739611550297,4.95510036,2703.6,2703.5,1.18e-06]
[1739611551895,7.95510036,2703.6,2703.5,1.18e-06]
[1739611553229,11.47312839,2703.6,2703.5,1.18e-06]
[1739611553546,0.8076,2703.1,2702.5,8.75]
[1739611553845,3.70001,2702.7,2702.6,8.75]
[1739611554169,3.96401,2702.7,2702.6,8.78521685]
[1739611558742,3.96401,2702.7,2702.6,5.41521685]
[1739611561328,4.71891,2702.7,2702.6,5.41521685]
[1739611563328,5.103978,2702.7,2702.6,5.41521685]
[1739611564174,3.96401,2702.7,2702.6,5.41521685]
[1739611564346,0.264,2702.7,2702.6,6.24231685]
[1739611567374,3.964,2702.7,2702.6,5.41521685]
[1739611569586,0.264,2702.7,2702.6,5.41521685]
[1739611571587,3.964,2702.7,2702.6,5.41521685]
[1739611572590,0.264,2702.7,2702.6,5.41521685]
[1739611572788,0.264,2702.7,2702.1,0.1520533]
[1739611572789,3.70055,2702.3,2702.2,14.13]
[1739611573092,3.70055,2702.3,2702.2,5.38]
[1739611574164,3.70068,2702.2,2702.1,0.1520533]
[1739611574407,6.70068,2702.2,2702.1,0.1520533]
[1739611575798,7.47248,2702.2,2702.1,0.1520533]
[1739611577318,8.20877807,2702.2,2702.1,0.1520533]
[1739611577661,8.68325343,2702.2,2702.1,0.1520533]
[1739611579171,7.91145343,2702.2,2702.1,0.1520533]
[1739611579414,8.17545343,2702.2,2702.1,0.1520533]
[1739611580711,8.94725343,2702.2,2702.1,0.1520533]
[1739611581131,11.16725343,2702.2,2702.1,0.1520533]
[1739611582173,8.94725343,2702.2,2702.1,0.1520533]
[1739611582378,8.68325343,2702.2,2702.1,0.1520533]
[1739611582892,8.94825343,2702.2,2702.1,0.1520533]
[1739611583503,8.17645343,2702.2,2702.1,0.1520533]
[1739611583817,5.17645343,2702.2,2702.1,0.1520533]
[1739611585707,5.94825343,2702.2,2702.1,0.1520533]
[1739611586622,8.16825343,2702.2,2702.1,0.1520533]
[1739611587828,11.16825343,2702.2,2702.1,0.1520533]
[1739611594233,11.36023784,2702.2,2702.1,0.1520533]
[1739611597119,11.36023784,2702.2,2702.1,3.3e-06]
[1739611600456,11.35923784,2702.2,2702.1,3.3e-06]
[1739611610092,11.09523784,2702.2,2702.1,3.3e-06]
[1739611610293,11.35923784,2702.2,2702.1,3.3e-06]
[1739611611648,10.90325343,2702.2,2702.1,3.3e-06]
[1739611611848,7.43697807,2702.2,2702.1,3.3e-06]
[1739611612048,7.70097807,2702.2,2702.1,3.3e-06]
[1739611612682,7.43697807,2702.2,2702.1,3.3e-06]
[1739611612886,4.70097807,2702.2,2702.1,3.3e-06]
[1739611617389,7.70097807,2702.2,2702.1,3.3e-06]
[1739611617799,10.11294892,2702.2,2702.1,3.3e-06]
[1739611617992,10.89924892,2702.2,2702.1,3.3e-06]
[1739611630097,2.22,2702.0,2701.4,0.8047]
[1739611630380,0.769,2701.7,2701.1,0.7672]
[1739611630542,3.7026,2700.8,2700.7,0.7672]
[1739611630838,3.9656,2700.8,2700.7,0.7672]
[1739611631701,3.70301,2700.5,2700.4,1.3172]
[1739611635428,3.70301,2700.5,2700.4,0.55]
[1739611636776,6.70301,2700.5,2700.4,0.55]
[1739611638638,3.264,2700.5,2700.4,0.55]
[1739611639363,3.70286,2700.7,2700.4,0.55]
[1739611639570,0.264,2700.6,2700.5,0.8164]
[1739611639767,0.264,2700.7,2700.5,0.8164]
[1739611640339,3.70224,2701.1,2700.5,0.8164]
[1739611640538,0.264,2701.0,2700.5,0.8164]
[1739611640781,4.62662803,2701.6,2700.7,0.8164]
[1739611640956,4.62662803,2701.6,2700.9,0.8164]
[1739611640957,0.75271963,2701.2,2700.9,0.8164]
[1739611641588,3.0,2701.7,2701.0,0.8164]
[1739611641787,0.264,2701.4,2701.0,4.51871]
[1739611642393,3.70128,2701.8,2701.0,4.51871]
[1739611642554,0.264,2701.7,2701.2,4.51842]
[1739611642755,3.70082,2702.1,2701.5,0.8164]
[1739611642960,0.264,2702.0,2701.6,0.8164]
[1739611644246,3.96506,2702.0,2701.6,0.8164]
[1739611644448,3.70137,2701.7,2701.6,0.8164]
[1739611644671,3.70109,2701.9,2701.6,0.8164]
[1739611646591,3.70083,2702.1,2701.6,0.8164]
[1739611646800,0.264,2701.9,2701.6,1.43604]
[1739611647861,0.264,2701.9,2701.6,6.81604]
[1739611648062,3.265,2702.2,2701.7,0.7902]
[1739611648505,3.0,2702.1,2701.7,0.7902]
[1739611649393,3.70099,2702.0,2701.7,0.7902]
[1739611650432,3.70123,2701.8,2701.7,0.7902]
[1739611650566,3.70123,2701.8,2701.6,5.38]
[1739611651208,3.70137,2701.7,2701.6,5.38]
[1739611652107,6.70137,2701.7,2701.6,5.38]
[1739611653324,7.64721922,2701.7,2701.6,5.38]
[1739611653529,8.09509358,2701.7,2701.6,5.38]
[1739611653819,3.70178,2701.4,2701.0,0.7902]
[1739611654114,3.70206,2701.2,2701.0,0.7902]
[1739611656947,0.265,2701.3,2701.0,0.7902]
[1739611658934,3.96696,2701.3,2701.0,0.7902]
[1739611659852,0.265,2701.3,2701.0,0.7902]
[1739611660012,0.265,2701.3,2701.0,2.6340228]
[1739611660211,3.96571,2701.5,2701.0,2.6340228]
[1739611660501,3.74184349,2701.6,2701.1,0.7902]
[1739611660653,0.264,2701.5,2701.1,0.7902]
[1739611660965,3.74184349,2701.6,2701.1,0.7902]
[1739611660966,0.265,2701.8,2701.3,3.70191]
[1739611661161,0.265,2701.8,2701.4,0.7902]
[1739611661453,3.70113,2701.9,2701.4,0.7902]
[1739611661651,0.265,2702.1,2701.4,0.7902]
[1739611661952,3.70118,2701.9,2701.5,5.38]
[1739611663457,3.70149,2701.7,2701.5,5.38]
[1739611663612,3.70151,2701.6,2701.5,5.38]
[1739611668535,6.70151,2701.6,2701.5,5.38]
[1739611669334,7.44087112,2701.6,2701.5,5.38]
[1739611670167,6.70151,2701.6,2701.5,5.38]
[1739611671577,3.70186,2701.4,2701.2,5.38]
[1739611675183,3.70192,2701.3,2701.2,5.38]
[1739611678261,7.40343,2701.5,2701.2,5.38]
[1739611679291,3.70188,2701.4,2701.2,5.38]
[1739611680605,3.70177,2701.5,2701.2,5.38]
[1739611680753,3.70162,2701.6,2701.2,5.38]
[1739611680954,3.96562,2701.6,2701.3,0.8022]
[1739611681855,3.70178,2701.4,2701.3,0.8022]
[1739611682055,3.70166,2701.5,2701.3,0.8022]
[1739611682852,3.70178,2701.4,2701.3,0.8022]
[1739611684277,3.96561,2701.6,2701.3,0.8022]
[1739611684600,3.70164,2701.5,2701.3,0.8022]
[1739611685451,3.70192,2701.3,2701.2,5.38]
[1739611686097,3.70178,2701.4,2701.2,5.38]
[1739611686398,3.70178,2701.4,2701.3,0.8022]
[1739611687769,6.70157,2701.6,2701.3,0.8022]
[1739611687976,3.0,2701.6,2701.3,0.8022]
[1739611688978,6.70154,2701.6,2701.3,0.8022]
[1739611689217,3.70166,2701.5,2701.3,0.8022]
[1739611689512,0.768,2701.2,2699.5,1.52928197]
[1739611689661,3.70416,2699.7,2699.4,1.52928197]
[1739611690000,3.97499,2699.8,2699.4,0.24785353]
[1739611690201,3.70411,2699.7,2699.2,0.8022]
[1739611690369,0.271,2699.8,2699.2,0.8022]
[1739611690571,3.70411,2699.7,2699.2,0.8022]
[1739611690799,3.70442,2699.5,2699.2,0.8022]
[1739611691373,3.70411,2699.7,2699.2,0.8022]
[1739611691605,0.34376108,2699.6,2699.2,0.8022]
[1739611692705,0.271,2699.8,2699.2,0.8022]
[1739611692857,0.818,2701.0,2699.6,0.7795]
[1739611693060,0.271,2700.9,2699.8,3.51802803]
[1739611693300,3.70319,2700.4,2699.8,3.51802803]
[1739611694103,3.70288,2700.6,2699.9,0.7795]
[1739611694527,3.70301,2700.5,2699.9,0.7795]
[1739611694690,4.02159751,2700.7,2700.0,0.4297528]
[1739611695023,4.72437751,2700.7,2700.0,0.4297528]
[1739611695713,1.02159751,2700.7,2700.0,4.1333928]
[1739611696028,0.271,2700.7,2700.2,0.7795]
[1739611696916,6.70222,2701.1,2700.2,9.86291]
[1739611697089,0.271,2701.0,2700.4,3.51802803]
[1739611697281,0.271,2701.0,2700.4,7.22105803]
[1739611698531,3.97337,2701.0,2700.4,3.51802803]
[1739611699525,3.70258,2700.9,2700.4,3.51802803]
[1739611699740,3.70258,2700.9,2700.3,2.270522]
[1739611699902,3.70258,2700.9,2700.4,1.2883214]
[1739611700491,0.271,2701.0,2700.4,8.50944943]
[1739611703998,0.271,2701.0,2700.5,0.7795]
[1739611704614,0.271,2701.0,2700.5,4.4824]
[1739611704825,0.271,2701.0,2700.5,0.7795]
[1739611705140,0.271,2701.0,2700.6,0.92888694]
[1739611705753,0.271,2701.0,2700.6,0.82888694]
[1739611707241,0.271,2701.0,2700.6,6.20888694]
[1739611710232,3.70274,2700.7,2700.6,5.38]
[1739611711264,3.70248,2700.9,2700.6,5.38]
[1739611715910,0.271,2701.0,2700.6,5.38]
[1739611716311,0.271,2701.0,2700.6,9.08283]
[1739611716831,3.70227,2701.1,2700.6,9.08283]
[1739611716985,3.70227,2701.1,2700.7,1.1391612]
[1739611718922,3.70197,2701.3,2700.8,0.7852]
[1739611720029,0.34328638,2701.2,2700.8,0.7852]
[1739611721237,4.04535638,2701.2,2700.8,0.7852]
[1739611721444,0.34328638,2701.2,2700.8,0.7852]
[1739611721617,3.70197,2701.3,2700.8,0.7852]
[1739611723553,3.70197,2701.3,2700.8,1.88591012]
[1739611724557,0.34426157,2701.2,2700.8,1.88591012]
[1739611726357,0.34426157,2701.1,2700.8,1.88591012]
[1739611727325,0.34426157,2701.1,2700.8,0.7852]
[1739611727738,0.34426157,2701.0,2700.8,0.7852]
[1739611729281,0.34426157,2700.9,2700.8,0.7852]
[1739611732203,0.34426157,2700.9,2700.6,5.38]
[1739611732497,3.70274,2700.7,2700.6,5.38]
[1739611732653,3.70274,2700.7,2700.5,0.792]
[1739611733502,4.04685157,2700.9,2700.5,0.792]
[1739611733803,0.34426157,2700.6,2700.5,0.792]
[1739611735387,3.7026,2700.8,2700.5,0.792]
[1739611735813,4.43717504,2700.9,2700.5,0.792]
[1739611736148,3.70259,2700.9,2700.5,0.792]
[1739611738815,4.43296426,2701.1,2700.5,0.792]
[1739611739017,3.70221,2701.1,2700.5,4.49498]
[1739611739565,3.70221,2701.1,2700.5,5.4677242]
[1739611739730,0.267,2701.2,2700.7,3.70272]
[1739611739907,0.267,2701.2,2700.8,0.8222]
[1739611740933,3.70198,2701.3,2700.8,0.8222]
[1739611741133,3.70198,2701.3,2700.8,6.2022]
[1739611741134,4.43303056,2701.3,2700.8,6.2022]
[1739611745656,4.43303056,2701.3,2700.8,9.9048]
[1739611746444,4.43303056,2701.3,2700.8,6.2022]
[1739611746646,0.73105056,2701.3,2700.8,6.2022]
[1739611748251,0.73105056,2701.3,2700.8,9.90472]
[1739611748422,0.73105056,2701.3,2700.8,6.2022]
[1739611748810,0.73105056,2701.3,2700.8,9.90478]
[1739611750554,0.73105056,2701.3,2700.8,11.4184492]
[1739611750755,0.73105056,2701.3,2700.9,3.70243]
[1739611750956,6.96852,2701.6,2701.1,0.8222]
[1739611751258,4.01899774,2701.6,2701.1,4.52438]
[1739611751560,7.72052774,2701.6,2701.1,4.52438]
[1739611751740,4.72052774,2701.6,2701.1,9.90438]
[1739611752237,1.01899774,2701.6,2701.1,11.4179892]
[1739611752444,0.267,2701.6,2701.1,11.4179892]
[1739611753665,0.267,2701.6,2701.1,15.1200092]
[1739611753861,3.70115,2701.9,2701.4,0.8305]
[1739611754067,3.70115,2701.9,2701.4,6.2105]
[1739611755965,3.70128,2701.8,2701.4,6.2105]
[1739611758403,3.70128,2701.8,2701.4,7.7248642]
[1739611763410,7.44226915,2702.0,2701.4,7.7248642]
[1739611763614,7.44226915,2702.0,2701.5,0.8305]
[1739611766385,3.7011,2701.9,2701.5,0.8305]
[1739611768929,7.44226915,2702.0,2701.5,0.8305]
[1739611769128,3.70113,2701.9,2701.5,0.8305]
[1739611769527,3.70113,2701.9,2701.5,6.2105]
[1739611771640,3.70113,2701.9,2701.5,6.2105]
[1739611775238,3.70123,2701.8,2701.5,6.2105]
[1739611780062,4.522,2701.9,2701.5,6.2105]
[1739611780220,3.7011,2701.9,2701.5,6.2105]
[1739611781623,3.0,2701.9,2701.5,7.37275207]
[1739611783766,3.0,2701.9,2701.5,11.07437207]
[1739611784067,3.0,2701.9,2701.6,1.71015065]
[1739611786474,3.0,2701.9,2701.7,0.8044]
[1739611789650,6.70109,2701.9,2701.7,0.8044]
[1739611789980,6.70109,2701.9,2701.5,6.1844]
[1739611790674,3.0,2701.9,2701.5,6.1844]
[1739611795001,3.96574,2702.2,2701.6,5.41156065]
[1739611795348,3.70083,2702.1,2701.6,1.71015065]
[1739611796091,3.70099,2702.0,2701.6,1.71015065]
[1739611796277,3.70099,2702.0,2701.5,7.34404207]
[1739611796476,3.7011,2701.9,2701.5,7.34404207]
[1739611797752,3.7011,2701.9,2701.5,5.38]
[1739611798264,7.4023,2701.9,2701.5,5.38]
[1739611798464,3.7011,2701.9,2701.5,5.38]
[1739611798768,3.70124,2701.8,2701.5,5.38]
[1739611799595,3.70151,2701.6,2701.5,5.38]
[1739611801281,4.49191,2701.6,2701.5,5.38]
[1739611802002,5.3867326,2701.6,2701.5,5.38]
[1739611802357,1.6852226,2701.6,2701.0,0.8044]
[1739611802556,1.6852226,2701.6,2700.8,2.51455065]
[1739611802557,3.70207,2701.2,2700.8,2.51455065]
[1739611802863,3.70207,2701.2,2700.8,0.8044]
[1739611803065,3.70223,2701.1,2700.8,0.8044]
[1739611803286,3.70223,2701.1,2700.7,1.52928197]
[1739611803287,3.70223,2701.1,2700.6,4.04383262]
[1739611804271,4.49247,2701.2,2700.6,7.74665262]
[1739611804509,7.49225,2701.4,2700.8,1.71015065]
[1739611804701,3.70109,2701.9,2701.1,4.50649]
[1739611804905,3.70109,2701.9,2701.2,1.71015065]
[1739611804906,0.74722686,2701.7,2701.2,1.71015065]
[1739611805119,4.44859686,2701.7,2701.2,1.71015065]
[1739611805265,0.74722686,2701.7,2701.2,1.71015065]
[1739611805603,3.70123,2701.9,2701.3,4.50631]
[1739611805804,3.70125,2701.8,2701.3,0.8044]
[1739611806102,4.45558555,2701.8,2701.3,0.8044]
[1739611807063,0.75433555,2701.8,2701.3,0.8044]
[1739611807260,3.70137,2701.7,2701.3,0.8044]
[1739611807807,0.75433555,2701.8,2701.3,1.25505]
[1739611807985,3.70119,2701.9,2701.3,1.25505]
[1739611808191,3.96519,2701.9,2701.3,1.25505]
[1739611808601,3.96519,2701.9,2701.3,4.95696]
[1739611808916,4.69866749,2701.9,2701.3,4.95696]
[1739611809060,4.69866749,2701.9,2701.4,1.033696]
[1739611810109,0.264,2701.9,2701.4,4.735426]
[1739611810309,3.70097,2702.0,2701.5,0.8044]
[1739611810459,3.96397,2702.0,2701.5,0.8044]
[1739611810665,4.72196092,2702.0,2701.5,0.8044]
[1739611810976,1.02099092,2702.0,2701.5,5.4752686]
[1739611811176,1.02099092,2702.0,2701.5,10.8552686]
[1739611811377,4.72196092,2702.0,2701.5,10.8552686]
[1739611811574,0.263,2702.0,2701.5,10.8552686]
[1739611811780,0.263,2702.0,2701.6,0.8044]
[1739611811976,0.263,2702.0,2701.7,1.08552686]
[1739611812182,0.263,2702.0,2701.7,6.46552686]
[1739611812502,4.72496,2702.0,2701.7,5.38]
[1739611812661,3.70123,2701.8,2701.7,5.38]
[1739611813106,7.46223,2701.8,2701.7,5.38]
[1739611816961,6.70123,2701.8,2701.7,5.38]
[1739611817179,3.70154,2701.6,2701.2,5.38]
[1739611817415,3.70154,2701.6,2701.3,0.61883]
[1739611817916,3.0,2701.7,2701.3,0.61883]
[1739611818095,6.7014,2701.7,2701.4,0.8083]
[1739611818868,3.70151,2701.6,2701.4,0.8083]
[1739611819308,3.70151,2701.6,2701.2,6.1883]
[1739611819508,3.0,2701.7,2701.3,0.61883]
[1739611819970,3.0,2701.7,2701.4,0.8083]
[1739611821713,3.761,2701.7,2701.2,6.1883]
[1739611821910,3.70155,2701.6,2701.2,6.1883]
[1739611822729,3.70168,2701.5,2701.2,6.1883]
[1739611823527,3.7018,2701.4,2701.2,5.38]
[1739611824040,4.46333,2701.0,2700.5,2.33758197]
[1739611824238,4.46333,2701.0,2700.5,0.8083]
[1739611824527,3.70276,2700.7,2700.5,0.8083]
[1739611824882,3.70288,2700.6,2700.2,1.52928197]
[1739611825089,3.70261,2700.8,2700.2,2.05257817]
[1739611825311,7.40534,2700.8,2700.2,2.05257817]
[1739611825522,3.70261,2700.8,2700.2,2.05257817]
[1739611826079,3.70275,2700.7,2700.2,2.05257817]
[1739611826389,3.70261,2700.8,2700.2,2.05257817]
[1739611826632,3.70289,2700.6,2700.2,1.52928197]
[1739611827136,0.263,2700.9,2700.2,1.52928197]
[1739611827294,0.263,2700.9,2700.3,4.50437]
[1739611827632,3.96556,2700.9,2700.3,0.8011]
[1739611827787,0.263,2700.9,2700.3,4.50436]
[1739611827991,0.263,2700.9,2700.4,0.9736972]
[1739611828421,3.96557,2700.9,2700.4,0.9736972]
[1739611828616,3.0,2701.1,2700.5,0.8256]
[1739611828819,0.263,2701.0,2700.5,0.8256]
[1739611829907,3.96533,2701.0,2700.5,0.8256]
[1739611830521,3.70233,2701.0,2700.5,1.4314012]
[1739611830928,3.263,2701.1,2700.5,5.1343112]
[1739611831138,3.263,2701.1,2700.5,1.4314012]
[1739611831307,3.70233,2701.0,2700.5,1.4314012]
[1739611831502,3.263,2701.1,2700.5,4.3086812]
[1739611831830,0.9214,2701.8,2700.7,3.52760437]
[1739611832015,3.70161,2701.6,2700.8,9.90808]
[1739611832218,3.0,2701.5,2700.8,9.90808]
[1739611832397,3.70161,2701.6,2700.8,9.90808]
[1739611832398,3.70179,2701.4,2700.8,9.90808]
[1739611833195,7.4037,2701.4,2700.8,9.90808]
[1739611833398,3.70192,2701.3,2700.8,8.07238263]
[1739611834422,7.46050883,2701.5,2700.8,11.76499427]
[1739611834798,3.7018,2701.4,2700.8,11.76499427]
[1739611835231,3.7018,2701.4,2700.9,0.8256]
[1739611835435,3.0,2701.5,2701.0,4.52783]
[1739611835637,3.70156,2701.6,2701.1,1.278383]
[1739611836140,3.263,2701.7,2701.1,1.278383]
[1739611836294,3.263,2701.7,2701.1,4.980473]
[1739611836740,6.96445,2701.7,2701.1,4.980473]
[1739611836940,6.96445,2701.7,2701.3,0.8256]
[1739611837101,3.263,2701.7,2701.3,6.19561164]
[1739611837622,3.263,2701.7,2700.9,3.70244]
[1739611837623,0.8214,2701.4,2700.2,1.52928197]
[1739611837830,3.70289,2700.6,2700.1,0.8256]
[1739611838139,3.70301,2700.5,2700.2,0.2354882]
[1739611838312,3.70301,2700.5,2700.1,2.35488197]
[1739611838313,3.70301,2700.5,2700.1,0.8256]
[1739611838509,3.7033,2700.3,2700.1,0.8256]
[1739611839126,3.70301,2700.5,2700.1,0.8256]
[1739611840242,3.0,2700.6,2700.1,0.8256]
[1739611840400,0.265,2700.8,2700.2,3.7034]
[1739611840597,3.70275,2700.7,2700.1,8.05674437]
[1739611841371,3.70275,2700.7,2700.1,4.52914]
[1739611842474,3.70275,2700.7,2700.1,0.8256]
[1739611843893,3.70275,2700.7,2700.2,5.37001164]
[1739611844389,3.0,2700.8,2700.2,5.37001164]
[1739611844691,6.7026,2700.8,2700.2,10.586604]
[1739611844987,3.70261,2700.8,2700.2,10.586604]
[1739611845566,3.70261,2700.8,2700.2,6.883204]
[1739611845765,3.70276,2700.7,2700.2,6.883204]
[1739611849094,3.70276,2700.7,2700.3,0.7732]
[1739611849797,3.70276,2700.7,2700.3,6.14321164]
[1739611850699,3.70289,2700.6,2700.3,6.14321164]
[1739611851229,3.70311,2700.5,2700.3,6.14321164]
[1739611851363,3.70315,2700.4,2700.3,5.37001164]
[1739611853105,3.70311,2700.5,2700.3,5.37001164]
[1739611853760,3.70274,2700.7,2700.3,5.37001164]
[1739611854471,0.265,2700.6,2700.3,5.37001164]
[1739611855186,3.70274,2700.7,2700.3,6.507611]
[1739611855363,3.70288,2700.6,2700.3,6.507611]
[1739611855562,3.70274,2700.7,2700.3,6.507611]
[1739611855795,3.96774,2700.7,2700.4,0.7732]
[1739611856500,0.265,2700.7,2700.4,0.7732]
[1739611856701,0.265,2700.7,2700.4,1.8716231]
[1739611857500,7.40508,2700.9,2700.4,1.8716231]
[1739611857705,3.70263,2700.8,2700.4,1.8716231]
[1739611858061,3.70274,2700.7,2700.4,0.7732]
[1739611858257,7.40559,2700.7,2700.4,0.7732]
[1739611858486,3.70274,2700.7,2700.4,0.7732]
[1739611858806,3.70288,2700.6,2700.4,0.7732]
[1739611860005,3.70271,2700.8,2700.4,0.7732]
[1739611860305,3.70274,2700.7,2700.4,0.7732]
[1739611861013,3.70288,2700.6,2700.4,0.7732]
[1739611861593,3.70288,2700.6,2700.4,6.14321164]
[1739611862113,3.70301,2700.5,2700.4,6.14321164]
[1739611862670,3.70301,2700.5,2700.4,5.37001164]
[1739611866676,4.443585,2700.5,2700.4,5.37001164]
[1739611866915,5.226885,2700.5,2700.4,5.37001164]
[1739611867274,8.226885,2700.5,2700.4,5.37001164]
[1739611867494,3.70398,2699.8,2699.6,0.795]
[1739611867708,3.70398,2699.8,2699.6,6.16501164]
[1739611868644,0.264,2700.0,2699.6,6.16501164]
[1739611868797,3.96779,2700.0,2699.6,6.16501164]
[1739611869313,3.70394,2699.9,2699.6,6.16501164]
[1739611869525,3.70399,2699.8,2699.6,6.16501164]
[1739611869711,3.70394,2699.9,2699.6,6.16501164]
[1739611870122,3.70398,2699.8,2699.6,6.16501164]
[1739611870338,3.70394,2699.9,2699.6,6.16501164]
[1739611870741,3.704,2699.8,2699.6,6.16501164]
[1739611871098,4.48741,2699.7,2699.6,5.37001164]
[1739611872240,3.70411,2699.7,2699.6,5.37001164]
[1739611873754,3.70427,2699.6,2699.4,5.37001164]
[1739611875156,3.70411,2699.7,2699.4,5.37001164]
[1739611876558,7.40833,2699.7,2699.4,5.37001164]